bitfinex/quotes_BTCUSD_20211001
["timestamp","ask_amount","ask_price","bid_price","bid_amount"]
[1633066217115,0.00041297,43734.0,43733.0,0.22874]
[1633066217919,0.02541297,43734.0,43733.0,0.59774]
[1633066218317,0.02541297,43734.0,43733.0,0.24774]
[1633066219319,0.00041297,43734.0,43733.0,0.22874]
[1633066219922,0.02541297,43734.0,43733.0,0.24874]
[1633066221326,0.00041297,43734.0,43733.0,0.22874]
[1633066222123,0.02541297,43734.0,43733.0,0.24774]
[1633066222324,0.02541297,43734.0,43733.0,0.59774]
[1633066222525,0.02541297,43734.0,43733.0,0.24774]
[1633066223324,0.00041297,43734.0,43733.0,0.22874]
[1633066223927,0.02541297,43734.0,43733.0,0.79674]
[1633066224128,0.02541297,43734.0,43733.0,0.24674]
[1633066225331,0.00041297,43734.0,43733.0,0.22874]
[1633066225929,0.02541297,43734.0,43733.0,0.79774]
[1633066226130,0.02541297,43734.0,43733.0,0.24774]
[1633066227531,0.02541297,43734.0,43733.0,0.25313148]
[1633066228133,0.02541297,43734.0,43733.0,0.60313148]
[1633066228934,0.02541297,43734.0,43733.0,0.25313148]
[1633066229332,0.00041297,43734.0,43733.0,0.23413148]
[1633066229933,0.02641297,43734.0,43733.0,1.10613148]
[1633066230332,0.02641297,43734.0,43733.0,0.25613148]
[1633066231237,0.00041297,43734.0,43733.0,0.23413148]
[1633066232041,0.00041297,43734.0,43733.0,1.85578064]
[1633066232042,0.02641297,43734.0,43733.0,1.85578064]
[1633066232241,0.02641297,43734.0,43733.0,2.00192383]
[1633066232439,0.02641297,43734.0,43733.0,2.10192383]
[1633066232642,0.02641297,43734.0,43733.0,2.44497083]
[1633066233238,0.02641297,43734.0,43733.0,2.42297083]
[1633066233239,0.00041297,43734.0,43733.0,2.42297083]
[1633066233638,0.06611221,43744.0,43741.0,0.19315314]
[1633066233839,0.53311674,43749.0,43740.0,0.22866626]
[1633066233840,0.06609377,43746.0,43740.0,0.22866626]
[1633066234042,0.06609377,43746.0,43741.0,0.21849888]
[1633066234240,0.06609377,43746.0,43740.0,0.22866626]
[1633066234446,0.06609377,43746.0,43739.0,0.00128292]
[1633066234641,0.0002,43742.0,43739.0,0.00128292]
[1633066234840,0.0002,43742.0,43737.0,0.20586516]
[1633066234841,0.00726417,43741.0,43737.0,0.20586516]
[1633066235041,0.0002,43742.0,43739.0,0.00129749]
[1633066235238,0.0002,43742.0,43739.0,0.342997]
[1633066235841,0.0002,43742.0,43739.0,0.08467042]
[1633066236047,0.0202,43742.0,43741.0,0.18297186]
[1633066236242,0.0202,43742.0,43741.0,0.41389312]
[1633066236841,0.0202,43742.0,43741.0,0.23092126]
[1633066237245,0.0002,43742.0,43741.0,0.23092126]
[1633066237443,0.0002,43742.0,43741.0,1.03092126]
[1633066237840,0.0002,43742.0,43741.0,0.23092126]
[1633066238041,0.0272,43742.0,43741.0,0.55692126]
[1633066238642,0.0272,43742.0,43741.0,0.25692126]
[1633066239441,0.0002,43742.0,43741.0,0.23092126]
[1633066240102,0.0212,43742.0,43741.0,0.25992126]
[1633066240501,0.03626858,43742.0,43741.0,0.25992126]
[1633066240902,0.0212,43742.0,43741.0,0.25992126]
[1633066241301,0.0002,43742.0,43741.0,0.23092126]
[1633066241906,0.0002,43742.0,43736.0,0.571704]
[1633066242105,0.22872,43739.0,43733.0,0.58734309]
[1633066242303,0.22872,43739.0,43732.0,0.21805972]
[1633066242502,0.01416066,43738.0,43732.0,0.0005301]
[1633066242903,0.01416066,43738.0,43736.0,0.24810722]
[1633066244108,0.02416066,43738.0,43736.0,0.28110722]
[1633066244308,0.01468892,43737.0,43736.0,0.28110722]
[1633066244909,0.01,43738.0,43736.0,0.033]
[1633066245310,0.22872,43739.0,43733.0,0.23484718]
[1633066246110,0.22872,43739.0,43733.0,0.26884718]
[1633066246712,0.22872,43739.0,43737.0,0.22030211]
[1633066247712,0.22872,43739.0,43734.0,0.56463976]
[1633066248114,0.01482165,43738.0,43737.0,0.028]
[1633066248514,0.01482165,43738.0,43733.0,0.23484718]
[1633066248913,0.01482165,43738.0,43734.0,0.21592387]
[1633066249523,0.01482165,43738.0,43734.0,0.29170352]
[1633066250121,0.22872,43739.0,43734.0,0.32470352]
[1633066251124,0.22872,43739.0,43734.0,0.033]
[1633066251324,0.22872,43739.0,43733.0,0.23484718]
[1633066252126,0.22872,43739.0,43735.0,0.22701688]
[1633066253425,0.22872,43739.0,43736.0,0.00538969]
[1633066254226,0.23272,43739.0,43736.0,0.03638969]
[1633066255430,0.22872,43739.0,43736.0,0.00538969]
[1633066256129,0.23072,43739.0,43736.0,0.03638969]
[1633066257533,0.22872,43739.0,43736.0,0.00538969]
[1633066258131,0.23072,43739.0,43736.0,0.03638969]
[1633066259431,0.22872,43739.0,43736.0,0.00538969]
[1633066259833,0.22872,43739.0,43737.0,0.01251905]
[1633066260236,0.25372,43739.0,43737.0,0.01251905]
[1633066261434,0.22872,43739.0,43737.0,0.01251905]
[1633066262237,0.25472,43739.0,43737.0,0.03751905]
[1633066262438,0.25472,43739.0,43737.0,0.025]
[1633066263436,0.22872,43739.0,43736.0,0.00538969]
[1633066264239,0.24172,43739.0,43736.0,0.03838969]
[1633066265440,0.22872,43739.0,43736.0,0.00538969]
[1633066265840,0.22372,43739.0,43736.0,0.00538969]
[1633066266239,0.24972,43739.0,43736.0,0.03238969]
[1633066266639,0.24972,43739.0,43736.0,0.37541669]
[1633066267639,0.24972,43739.0,43736.0,0.46040751]
[1633066268042,0.22372,43739.0,43736.0,0.43340751]
[1633066268241,0.24772,43739.0,43736.0,0.46040751]
[1633066269442,0.24772,43739.0,43736.0,0.37541669]
[1633066269642,0.22372,43739.0,43736.0,0.34841669]
[1633066270301,0.24972,43739.0,43736.0,0.37541669]
[1633066270503,0.24972,43739.0,43736.0,0.45512921]
[1633066271804,0.22372,43739.0,43736.0,0.42812921]
[1633066272202,0.25072,43739.0,43736.0,0.45512921]
[1633066273624,0.22372,43739.0,43736.0,0.42812921]
[1633066274228,0.027,43739.0,43738.0,0.02202981]
[1633066274426,0.027,43739.0,43738.0,0.24856638]
[1633066274624,0.027,43739.0,43738.0,0.54909648]
[1633066275030,0.027,43739.0,43738.0,0.87229648]
[1633066275227,0.027,43739.0,43738.0,0.64909648]
[1633066275632,0.027,43739.0,43738.0,0.34909648]
[1633066276029,0.027,43739.0,43738.0,0.12255991]
[1633066276230,0.027,43739.0,43738.0,0.05655991]
[1633066276231,0.01,43739.0,43738.0,0.05655991]
[1633066276628,0.01,43739.0,43738.0,0.40655991]
[1633066277629,0.0002,43742.0,43738.0,0.37255991]
[1633066278030,0.0002,43742.0,43739.0,0.00256824]
[1633066278233,0.0082,43742.0,43739.0,0.00256824]
[1633066278431,0.0082,43742.0,43740.0,0.0005301]
[1633066278630,0.0082,43742.0,43740.0,0.3435231]
[1633066278832,0.0082,43742.0,43741.0,0.21705735]
[1633066279132,0.0082,43742.0,43741.0,0.33565735]
[1633066279734,0.0002,43742.0,43741.0,0.33565735]
[1633066280332,0.0152,43742.0,43741.0,0.36665735]
[1633066280933,0.0152,43742.0,43741.0,0.15153668]
[1633066281534,0.0002,43742.0,43741.0,0.12053668]
[1633066281934,0.01475055,43742.0,43741.0,0.12053668]
[1633066282134,0.0002,43742.0,43741.0,0.12053668]
[1633066282334,0.0162,43742.0,43741.0,0.15153668]
[1633066283339,0.07474,43742.0,43741.0,0.15153668]
[1633066283741,0.05874,43742.0,43741.0,0.12053668]
[1633066284142,0.05874,43742.0,43741.0,0.34468773]
[1633066284340,0.05874,43742.0,43741.0,0.37468773]
[1633066284341,0.07574,43742.0,43741.0,0.37468773]
[1633066285338,0.07574,43742.0,43741.0,0.1486]
[1633066285540,0.05874,43742.0,43741.0,0.1186]
[1633066285739,0.05874,43742.0,43740.0,0.392398]
[1633066285945,0.05874,43742.0,43740.0,0.342998]
[1633066286341,0.07674,43742.0,43741.0,1.03]
[1633066286541,0.07674,43742.0,43741.0,1.14182]
[1633066286742,0.07674,43742.0,43741.0,0.14182]
[1633066287341,0.07674,43742.0,43741.0,0.35810558]
[1633066287542,0.05874,43742.0,43741.0,0.57810558]
[1633066288140,0.05874,43742.0,43741.0,0.32810558]
[1633066288341,0.0132,43742.0,43741.0,0.36010558]
[1633066288544,0.07174,43742.0,43741.0,0.36010558]
[1633066289544,0.05874,43742.0,43741.0,0.32810558]
[1633066290750,0.0002,43743.0,43742.0,0.0002]
[1633066291012,0.0002,43743.0,43742.0,0.38942376]
[1633066291150,0.0002,43745.0,43742.0,1.66496376]
[1633066291348,0.0002,43745.0,43744.0,0.0033894]
[1633066291548,0.0002,43745.0,43744.0,0.0039195]
[1633066291949,0.0006,43750.0,43744.0,0.64671886]
[1633066292154,0.0006,43750.0,43749.0,0.00128641]
[1633066292350,0.0006,43750.0,43749.0,0.02471651]
[1633066292548,0.0006,43750.0,43749.0,0.44245277]
[1633066292950,0.0006,43750.0,43749.0,1.40314843]
[1633066293149,0.0006,43750.0,43749.0,1.62634843]
[1633066294155,0.37419453,43758.0,43750.0,1.15]
[1633066294356,0.001,43763.0,43759.0,1.47999453]
[1633066294558,0.001,43763.0,43759.0,1.87196806]
[1633066294751,0.001,43763.0,43759.0,1.8736895]
[1633066295356,0.001,43763.0,43759.0,0.6566895]
[1633066295555,0.001,43763.0,43759.0,0.74472636]
[1633066296154,0.001,43763.0,43759.0,0.96792636]
[1633066296355,0.001,43763.0,43759.0,1.00292636]
[1633066297014,0.001,43763.0,43759.0,2.21992636]
[1633066297353,0.001,43763.0,43759.0,2.35479636]
[1633066297552,0.001,43763.0,43759.0,2.31979636]
[1633066298153,0.0008,43760.0,43759.0,2.31979636]
[1633066298356,0.001,43763.0,43759.0,2.35679636]
[1633066298556,0.001,43764.0,43762.0,1.15]
[1633066298757,0.0012,43768.0,43764.0,1.39052367]
[1633066298961,0.0012,43768.0,43765.0,0.43032609]
[1633066299159,0.0012,43768.0,43765.0,0.43192534]
[1633066299356,0.0012,43768.0,43765.0,0.18303925]
[1633066299754,0.0012,43768.0,43765.0,0.39939747]
[1633066300157,0.0012,43768.0,43765.0,0.40060511]
[1633066300356,0.0012,43768.0,43765.0,1.95660511]
[1633066300556,0.0012,43768.0,43765.0,1.65669862]
[1633066301758,0.0012,43768.0,43765.0,1.61769862]
[1633066302359,0.0012,43768.0,43765.0,1.65669862]
[1633066302758,0.01775238,43766.0,43765.0,1.65669862]
[1633066302961,0.01775238,43766.0,43765.0,0.2233404]
[1633066302962,0.0014,43766.0,43765.0,0.2233404]
[1633066303559,0.0014,43766.0,43765.0,0.1843404]
[1633066303761,0.0014,43766.0,43765.0,1.4013404]
[1633066304361,0.0014,43766.0,43765.0,1.4413404]
[1633066305564,0.0014,43766.0,43765.0,1.4013404]
[1633066306366,0.0014,43766.0,43765.0,1.4403404]
[1633066306768,0.0014,43766.0,43765.0,1.4398103]
[1633066307567,0.0014,43766.0,43765.0,1.4403404]
[1633066307766,0.0014,43766.0,43765.0,1.4013404]
[1633066308367,0.0014,43766.0,43765.0,1.4413404]
[1633066309568,0.0001,43766.0,43765.0,1.4413404]
[1633066309768,0.0001,43766.0,43765.0,1.4013404]
[1633066309969,0.0001,43766.0,43765.0,1.4513404]
[1633066310168,0.0001,43766.0,43765.0,1.70109464]
[1633066310371,0.0001,43766.0,43765.0,1.73909464]
[1633066310970,0.0001,43766.0,43765.0,1.73856454]
[1633066311371,0.0001,43766.0,43765.0,1.73909464]
[1633066311772,0.0001,43766.0,43765.0,1.70109464]
[1633066312371,0.0001,43766.0,43765.0,1.74009464]
[1633066313773,0.0001,43766.0,43765.0,1.70109464]
[1633066314377,0.0001,43766.0,43765.0,1.74009464]
[1633066314681,0.0001,43766.0,43765.0,1.71719464]
[1633066315675,0.0001,43766.0,43765.0,1.67819464]
[1633066316076,0.0001,43766.0,43765.0,0.46119464]
[1633066316475,0.0001,43766.0,43765.0,0.50019464]
[1633066317878,0.0001,43766.0,43765.0,0.46119464]
[1633066318078,0.0001,43766.0,43765.0,0.46066454]
[1633066318477,0.0001,43766.0,43765.0,0.50019464]
[1633066318678,0.0001,43766.0,43765.0,0.49966454]
[1633066319280,0.0001,43766.0,43765.0,0.50019464]
[1633066319483,0.0001,43766.0,43765.0,0.49966454]
[1633066319684,0.0001,43766.0,43765.0,0.46066454]
[1633066319884,0.0001,43766.0,43765.0,0.46119464]
[1633066320481,0.0001,43766.0,43765.0,0.50119464]
[1633066320681,0.0001,43766.0,43765.0,0.50066454]
[1633066321285,0.0001,43766.0,43765.0,0.4994569]
[1633066321486,0.0001,43766.0,43765.0,0.09854]
[1633066321689,0.0001,43766.0,43765.0,0.05854]
[1633066322489,0.0261,43766.0,43765.0,0.29480391]
[1633066322691,0.26684652,43766.0,43765.0,0.08454]
[1633066322890,0.49551052,43766.0,43765.0,0.026]
[1633066323090,0.83837852,43766.0,43765.0,0.026]
[1633066323686,0.83837852,43766.0,43764.0,0.00538619]
[1633066323687,0.81237852,43766.0,43764.0,0.00538619]
[1633066323889,0.00597875,43765.0,43764.0,0.00538619]
[1633066324148,0.22333872,43765.0,43764.0,0.00538619]
[1633066324549,0.22333872,43765.0,43764.0,0.02338619]
[1633066324550,0.2555549,43765.0,43764.0,0.02338619]
[1633066324748,0.4842189,43765.0,43764.0,0.02338619]
[1633066325745,0.4532189,43765.0,43764.0,0.00538619]
[1633066326355,0.4532189,43765.0,43764.0,0.0020863]
[1633066326356,0.51926277,43765.0,43764.0,0.0020863]
[1633066326548,0.55026277,43765.0,43764.0,0.0200863]
[1633066326747,0.62215945,43765.0,43764.0,0.0200863]
[1633066326955,0.33290458,43765.0,43764.0,0.0200863]
[1633066327156,0.26685893,43765.0,43764.0,0.0200863]
[1633066327353,0.03819493,43765.0,43764.0,0.0200863]
[1633066327752,0.03819493,43765.0,43764.0,0.0020863]
[1633066327753,0.00719493,43765.0,43764.0,0.0020863]
[1633066328551,0.03719493,43765.0,43764.0,0.0210863]
[1633066329552,0.26585893,43765.0,43764.0,0.0210863]
[1633066329752,0.23585893,43765.0,43764.0,0.0020863]
[1633066330553,0.26585893,43765.0,43764.0,0.0210863]
[1633066330954,0.25988018,43765.0,43764.0,0.0210863]
[1633066331355,0.25988018,43765.0,43764.0,0.02438619]
[1633066331554,0.47792189,43765.0,43764.0,0.02438619]
[1633066331754,0.44792189,43765.0,43764.0,0.00538619]
[1633066332556,0.47692189,43765.0,43764.0,0.02438619]
[1633066332956,0.25888018,43765.0,43764.0,0.02438619]
[1633066333755,0.22988018,43765.0,43764.0,0.00538619]
[1633066334555,0.25988018,43765.0,43764.0,0.02438619]
[1633066335759,0.22988018,43765.0,43764.0,0.00538619]
[1633066336165,0.41554242,43765.0,43764.0,0.00538619]
[1633066336562,0.44354242,43765.0,43764.0,0.02438619]
[1633066337161,0.02921618,43765.0,43764.0,0.02438619]
[1633066337761,0.00121618,43765.0,43764.0,0.00538619]
[1633066338561,0.00121618,43765.0,43764.0,0.37438619]
[1633066338562,0.03221618,43765.0,43764.0,0.37438619]
[1633066338762,0.03221618,43765.0,43764.0,0.02438619]
[1633066339764,0.00121618,43765.0,43764.0,0.00538619]
[1633066340367,0.0001,43766.0,43764.0,0.00538619]
[1633066340567,0.03,43765.0,43764.0,0.02138619]
[1633066341767,0.0001,43766.0,43764.0,0.00538619]
[1633066342570,0.0331,43766.0,43764.0,0.02138619]
[1633066342972,0.03434339,43766.0,43760.0,0.1857792]
[1633066343769,0.00134339,43766.0,43760.0,0.1857792]
[1633066343972,0.07956689,43762.0,43759.0,0.32999453]
[1633066344172,0.01215324,43761.0,43759.0,0.32999453]
[1633066344570,0.01215324,43761.0,43759.0,0.35999453]
[1633066345375,0.09856689,43762.0,43759.0,0.35999453]
[1633066345772,0.07956689,43762.0,43759.0,0.32999453]
[1633066346575,0.10256689,43762.0,43759.0,0.35899453]
[1633066346976,0.44546089,43762.0,43759.0,0.35899453]
[1633066347776,0.342894,43762.0,43759.0,0.32999453]
[1633066348580,0.369894,43762.0,43759.0,0.35899453]
[1633066349781,0.342894,43762.0,43759.0,0.32999453]
[1633066350581,0.371894,43762.0,43759.0,0.35799453]
[1633066351782,0.342894,43762.0,43759.0,0.32999453]
[1633066351988,0.21206699,43759.0,43749.0,0.06540164]
[1633066352184,0.00127133,43750.0,43746.0,0.23203572]
[1633066352384,0.00127769,43747.0,43744.0,0.06547245]
[1633066352586,0.02417133,43750.0,43742.0,0.06551062]
[1633066352587,0.28153144,43749.0,43742.0,0.06551062]
[1633066352986,0.09837372,43748.0,43745.0,0.11146252]
[1633066353182,0.28153144,43749.0,43745.0,0.11146252]
[1633066353183,0.27266147,43749.0,43745.0,0.11146252]
[1633066353581,0.0229,43750.0,43745.0,0.11146252]
[1633066353984,0.27408131,43754.0,43745.0,0.11146252]
[1633066354186,0.07221189,43752.0,43745.0,0.11146252]
[1633066354383,0.22559898,43751.0,43745.0,0.11146252]
[1633066354586,0.01094542,43750.0,43745.0,0.14746252]
[1633066356186,0.22559898,43751.0,43745.0,0.11146252]
[1633066356585,0.56856998,43751.0,43745.0,0.14746252]
[1633066356785,0.22559898,43751.0,43745.0,0.14746252]
[1633066356987,0.24527087,43754.0,43746.0,0.0005301]
[1633066357184,0.24527087,43754.0,43752.0,0.10325869]
[1633066357386,0.01110551,43753.0,43745.0,0.036]
[1633066357788,0.342981,43750.0,43745.0,0.04138839]
[1633066357987,0.2245106,43749.0,43745.0,0.00538839]
[1633066358187,0.00535241,43748.0,43745.0,0.00538839]
[1633066358386,0.2245106,43749.0,43747.0,0.09786692]
[1633066358586,0.014,43749.0,43747.0,0.09786692]
[1633066358786,0.23259837,43749.0,43747.0,0.09786692]
[1633066358989,0.014,43749.0,43747.0,0.09786692]
[1633066360050,0.21529496,43749.0,43747.0,0.09786692]
[1633066360186,0.342981,43750.0,43747.0,0.09786692]
[1633066360588,0.366981,43749.0,43747.0,0.12686692]
[1633066361990,0.342981,43749.0,43747.0,0.09786692]
[1633066362592,0.366981,43749.0,43747.0,0.12686692]
[1633066363595,0.366981,43749.0,43747.0,0.13225524]
[1633066363797,0.342981,43749.0,43747.0,0.10325524]
[1633066364596,0.366981,43749.0,43747.0,0.13225524]
[1633066366068,0.342981,43749.0,43747.0,0.10325524]
[1633066366602,0.366981,43749.0,43747.0,0.13225524]
[1633066367401,0.366981,43749.0,43747.0,0.03438832]
[1633066367601,0.21432776,43748.0,43747.0,0.03438832]
[1633066367802,0.342981,43749.0,43747.0,0.00538832]
[1633066368602,0.366981,43749.0,43747.0,0.03338832]
[1633066369802,0.366981,43749.0,43747.0,0.00538832]
[1633066370003,0.342981,43749.0,43747.0,0.00538832]
[1633066370408,0.21372416,43748.0,43747.0,0.00538832]
[1633066370605,0.21372416,43748.0,43747.0,0.43238832]
[1633066370807,0.21372416,43748.0,43747.0,0.03238832]
[1633066371804,0.21372416,43748.0,43747.0,0.00538832]
[1633066372605,0.24372416,43748.0,43747.0,0.57938832]
[1633066372808,0.24372416,43748.0,43747.0,0.02938832]
[1633066373206,0.24372416,43748.0,43747.0,0.1098169]
[1633066373407,0.24372416,43748.0,43747.0,0.02938832]
[1633066374007,0.21372416,43748.0,43747.0,0.00538832]
[1633066374207,0.228682,43751.0,43747.0,0.00538832]
[1633066374408,0.00584331,43750.0,43747.0,0.00538832]
[1633066374613,0.03,43748.0,43747.0,0.03038832]
[1633066374808,0.04094419,43748.0,43747.0,0.03038832]
[1633066376010,0.25443928,43748.0,43747.0,0.03038832]
[1633066376209,0.22443928,43748.0,43747.0,0.00538832]
[1633066376409,0.21349509,43748.0,43747.0,0.00538832]
[1633066376810,0.24249509,43748.0,43747.0,0.03038832]
[1633066380418,0.21349509,43748.0,43747.0,0.00538832]
[1633066380814,0.24249509,43748.0,43747.0,0.03038832]
[1633066382219,0.21349509,43748.0,43747.0,0.00538832]
[1633066382420,0.342994,43749.0,43747.0,0.00538832]
[1633066382819,0.029,43748.0,43747.0,0.03038832]
[1633066384218,0.342994,43749.0,43747.0,0.00538832]
[1633066384820,0.029,43748.0,43747.0,0.03038832]
[1633066386221,0.24417606,43748.0,43747.0,0.03038832]
[1633066386423,0.24417606,43748.0,43747.0,0.03543523]
[1633066386424,0.029,43748.0,43747.0,0.03543523]
[1633066388625,0.029,43748.0,43747.0,0.03038832]
[1633066390228,0.059,43748.0,43747.0,0.05538832]
[1633066390830,0.00120849,43748.0,43747.0,0.00538832]
[1633066392034,0.00120849,43748.0,43747.0,0.47938832]
[1633066392227,0.03020849,43748.0,43747.0,0.02938832]
[1633066392831,0.00120849,43748.0,43747.0,0.00538832]
[1633066394028,0.03120849,43748.0,43747.0,0.57938832]
[1633066394229,0.03120849,43748.0,43747.0,0.02938832]
[1633066395432,0.03120849,43748.0,43747.0,0.00538832]
[1633066395636,0.79275529,43751.0,43750.0,0.23677858]
[1633066395831,0.57166,43751.0,43750.0,0.23677858]
[1633066396093,0.06591154,43754.0,43750.0,0.23677858]
[1633066396637,0.35383228,43753.0,43750.0,0.23677858]
[1633066396833,0.07946367,43751.0,43750.0,0.23677858]
[1633066397233,0.09269547,43751.0,43750.0,0.23677858]
[1633066397633,0.0132318,43751.0,43750.0,0.23677858]
[1633066398039,0.21578472,43752.0,43750.0,0.25677858]
[1633066398232,0.031,43751.0,43750.0,0.25677858]
[1633066399433,0.228664,43753.0,43750.0,0.23677858]
[1633066399634,0.0117184,43752.0,43750.0,0.23677858]
[1633066400033,0.0117184,43752.0,43750.0,0.02]
[1633066400233,0.0117184,43752.0,43751.0,0.00538796]
[1633066400432,0.259664,43753.0,43751.0,0.00538796]
[1633066400635,0.228664,43752.0,43751.0,0.00538796]
[1633066402099,0.259664,43752.0,43751.0,0.32438796]
[1633066402235,0.259664,43752.0,43751.0,0.02438796]
[1633066403437,0.44624586,43752.0,43751.0,0.00538796]
[1633066403838,0.228664,43752.0,43751.0,0.00538796]
[1633066404042,0.260664,43752.0,43751.0,0.02338796]
[1633066404643,0.388924,43752.0,43751.0,0.02338796]
[1633066404841,0.32654889,43752.0,43751.0,0.02338796]
[1633066405101,0.260664,43752.0,43751.0,0.02338796]
[1633066405242,0.32653521,43752.0,43751.0,0.02338796]
[1633066405641,0.32653521,43752.0,43751.0,0.00538796]
[1633066405642,0.35811068,43752.0,43751.0,0.00538796]
[1633066406041,0.35811068,43752.0,43751.0,0.02338796]
[1633066406042,0.60411595,43752.0,43751.0,0.02338796]
[1633066406241,0.39111068,43752.0,43751.0,0.02338796]
[1633066406642,0.32877383,43752.0,43751.0,0.02338796]
[1633066406841,0.32877562,43752.0,43751.0,0.02338796]
[1633066407442,0.29577562,43752.0,43751.0,0.00538796]
[1633066407641,0.3581946,43752.0,43751.0,0.00538796]
[1633066408100,0.32877736,43752.0,43751.0,0.02338796]
[1633066408243,0.39118121,43752.0,43751.0,0.02338796]
[1633066408643,0.32874661,43752.0,43751.0,0.02338796]
[1633066409441,0.29574661,43752.0,43751.0,0.00538796]
[1633066410045,0.32874661,43752.0,43751.0,0.02338796]
[1633066411106,0.39109236,43752.0,43751.0,0.02338796]
[1633066411449,0.3287456,43752.0,43751.0,0.02338796]
[1633066411646,0.51000049,43752.0,43751.0,0.00538796]
[1633066412053,0.51000049,43752.0,43736.0,0.80036113]
[1633066412054,0.20213655,43744.0,43737.0,0.06612604]
[1633066412252,0.20213655,43744.0,43735.0,0.06612903]
[1633066412253,0.00121838,43738.0,43735.0,0.06612903]
[1633066412453,0.00121838,43738.0,43732.0,0.06613135]
[1633066412651,0.00121838,43738.0,43731.0,0.5831]
[1633066412652,0.01522956,43736.0,43731.0,0.5831]
[1633066412850,0.01522956,43736.0,43733.0,0.07120439]
[1633066413053,0.01522956,43736.0,43733.0,0.12170569]
[1633066413247,0.01522956,43736.0,43734.0,0.2178878]
[1633066414046,0.02418229,43740.0,43734.0,0.2448878]
[1633066414249,0.027,43736.0,43734.0,0.2448878]
[1633066414851,0.01028741,43735.0,43734.0,0.2448878]
[1633066415052,0.027,43736.0,43734.0,0.2448878]
[1633066415252,0.370099,43736.0,43734.0,0.2448878]
[1633066415452,0.343099,43736.0,43734.0,0.2178878]
[1633066416049,0.370099,43736.0,43734.0,0.2428878]
[1633066417449,0.343099,43736.0,43734.0,0.2178878]
[1633066418050,0.369099,43736.0,43734.0,0.2428878]
[1633066420112,0.343099,43736.0,43734.0,0.2428878]
[1633066420254,0.370099,43736.0,43734.0,0.2428878]
[1633066421458,0.343099,43736.0,43734.0,0.2178878]
[1633066422258,0.370099,43736.0,43734.0,0.2428878]
[1633066423462,0.370099,43736.0,43734.0,0.2178878]
[1633066423463,0.343099,43736.0,43734.0,0.2178878]
[1633066424259,0.343099,43736.0,43734.0,0.2428878]
[1633066424260,0.369099,43736.0,43734.0,0.2428878]
[1633066424862,2.42526065,43751.0,43738.0,1.117723]
[1633066425065,0.9543,43751.0,43749.0,0.11549696]
[1633066425266,1.0459,43757.0,43749.0,0.11549696]
[1633066425267,0.24177783,43750.0,43749.0,0.19764438]
[1633066425463,0.06533786,43758.0,43750.0,0.19044133]
[1633066425464,0.342964,43755.0,43750.0,0.19044133]
[1633066425660,0.01004137,43754.0,43750.0,0.40731386]
[1633066425860,0.01004137,43754.0,43750.0,0.19044133]
[1633066426058,0.08269725,43757.0,43751.0,0.00538774]
[1633066426261,0.016,43754.0,43751.0,0.00538774]
[1633066426466,0.34789396,43753.0,43751.0,0.00538774]
[1633066426860,0.00529797,43752.0,43751.0,0.00538774]
[1633066428262,0.04129797,43752.0,43751.0,0.41038774]
[1633066428463,0.04129797,43752.0,43751.0,0.01038774]
[1633066428464,0.04614364,43752.0,43751.0,0.01038774]
[1633066428661,0.04614364,43752.0,43751.0,0.22618893]
[1633066428861,0.04614364,43752.0,43751.0,0.52618893]
[1633066429061,0.036,43752.0,43751.0,0.22618893]
[1633066429661,0.08269725,43757.0,43751.0,0.22118893]
[1633066429863,0.0099501,43756.0,43751.0,0.22118893]
[1633066430062,0.34294,43757.0,43751.0,0.22118893]
[1633066430263,0.017,43752.0,43751.0,0.24718893]
[1633066430663,0.017,43752.0,43751.0,0.03138774]
[1633066431464,0.553789,43759.0,43751.0,0.00538774]
[1633066431663,0.553789,43759.0,43758.0,0.18305085]
[1633066431866,0.44918361,43759.0,43758.0,0.18305085]
[1633066432125,0.51573171,43759.0,43751.0,0.22465114]
[1633066432264,0.66099271,43759.0,43751.0,0.22465114]
[1633066432867,0.00977478,43758.0,43751.0,0.22465114]
[1633066433066,0.00977478,43758.0,43755.0,0.23648253]
[1633066433467,0.28706771,43759.0,43755.0,0.23648253]
[1633066434266,0.31906771,43759.0,43755.0,0.25648253]
[1633066435266,0.66198971,43759.0,43755.0,0.02]
[1633066435466,0.62998971,43759.0,43751.0,0.22465114]
[1633066436267,0.65898971,43759.0,43751.0,0.24765114]
[1633066436465,0.65898971,43759.0,43751.0,0.4876539]
[1633066437367,0.31606771,43759.0,43751.0,0.4876539]
[1633066437570,0.210866,43759.0,43751.0,0.4646539]
[1633066437774,0.210866,43759.0,43753.0,0.08831583]
[1633066437973,0.210866,43759.0,43754.0,0.22743669]
[1633066438171,0.210866,43759.0,43758.0,0.9555085]
[1633066438172,0.222866,43759.0,43758.0,0.9555085]
[1633066438569,0.222866,43759.0,43758.0,0.09774795]
[1633066438772,0.222866,43759.0,43758.0,0.50861165]
[1633066438971,0.222866,43759.0,43758.0,0.50808155]
[1633066439371,0.222866,43759.0,43758.0,0.85092155]
[1633066439573,0.210866,43759.0,43758.0,0.85092155]
[1633066439971,0.210866,43759.0,43758.0,0.7592122]
[1633066440172,0.222866,43759.0,43758.0,0.7892122]
[1633066440373,0.222866,43759.0,43758.0,0.4463722]
[1633066440972,0.222866,43759.0,43758.0,0.52769806]
[1633066441173,0.222866,43759.0,43758.0,0.75218694]
[1633066441374,0.222866,43759.0,43758.0,0.72218694]
[1633066441572,0.210866,43759.0,43758.0,0.72218694]
[1633066441778,0.210866,43759.0,43758.0,0.72271704]
[1633066442378,0.222866,43759.0,43758.0,0.75671704]
[1633066442773,0.222866,43759.0,43758.0,0.75618694]
[1633066443775,0.210866,43759.0,43758.0,0.72218694]
[1633066443976,0.210866,43759.0,43758.0,0.72271704]
[1633066444239,0.210866,43759.0,43758.0,0.75571704]
[1633066445241,0.210866,43759.0,43758.0,0.52644544]
[1633066445441,0.210866,43759.0,43758.0,0.30324544]
[1633066445640,0.210866,43759.0,43758.0,0.48540766]
[1633066446041,0.210866,43759.0,43758.0,0.26971534]
[1633066446241,0.210866,43759.0,43758.0,0.30471534]
[1633066446843,0.210866,43759.0,43758.0,0.30524544]
[1633066447448,0.210866,43759.0,43758.0,0.27024544]
[1633066448048,0.210866,43759.0,43758.0,0.18891958]
[1633066448251,0.210866,43759.0,43758.0,0.22438948]
[1633066449249,0.210866,43759.0,43758.0,0.22491958]
[1633066449449,0.210866,43759.0,43758.0,0.18891958]
[1633066450252,0.210866,43759.0,43758.0,0.56776358]
[1633066451050,0.210866,43759.0,43758.0,0.56723348]
[1633066451650,0.210866,43759.0,43758.0,0.53123348]
[1633066451849,0.210866,43759.0,43758.0,0.53662058]